bitfinex-derivatives/quotes_BTCF0:USTF0_20210705
["timestamp","ask_amount","ask_price","bid_price","bid_amount"]
[1625468269987,0.58523572,34264.0,34263.0,5.06515876]
[1625468270084,0.58523572,34264.0,34263.0,5.06966169]
[1625468270285,0.24057544,34264.0,34263.0,5.06966169]
[1625468271489,0.41294855,34264.0,34263.0,5.06966169]
[1625468277453,0.75761329,34264.0,34263.0,5.06966169]
[1625468278653,0.24057544,34264.0,34263.0,5.06966169]
[1625468279254,0.75765335,34264.0,34263.0,5.06966169]
[1625468283069,0.41299216,34264.0,34263.0,5.06966169]
[1625468284725,0.24057544,34264.0,34263.0,5.06966169]
[1625468292441,0.24057544,34264.0,34263.0,5.12866169]
[1625468292691,0.24057544,34264.0,34263.0,6.67879218]
[1625468293792,0.24057544,34264.0,34263.0,5.12866169]
[1625468294244,0.24057544,34264.0,34263.0,6.67875009]
[1625468294694,0.24057544,34264.0,34263.0,5.12866169]
[1625468296046,0.17186094,34265.0,34263.0,5.18766169]
[1625468296147,6.094e-05,34265.0,34263.0,5.18766169]
[1625468296248,6.094e-05,34265.0,34264.0,0.24057544]
[1625468296347,6.094e-05,34265.0,34264.0,0.30408062]
[1625468296447,6.094e-05,34265.0,34264.0,0.36308062]
[1625468296850,6.094e-05,34265.0,34264.0,0.37172539]
[1625468296949,0.17197337,34267.0,34264.0,6.7547775]
[1625468297151,7.337e-05,34267.0,34264.0,6.7547775]
[1625468297249,7.337e-05,34267.0,34265.0,0.01030718]
[1625468297350,7.337e-05,34267.0,34265.0,0.34125718]
[1625468297451,7.337e-05,34267.0,34265.0,0.35440408]
[1625468297552,7.337e-05,34267.0,34265.0,0.3440969]
[1625468297651,1.03898121,34270.0,34267.0,4.808]
[1625468297751,1.03898121,34270.0,34267.0,4.867]
[1625468297852,1.03898121,34270.0,34267.0,4.926]
[1625468297951,1.03898121,34270.0,34268.0,0.00450196]
[1625468298053,1.03898121,34270.0,34268.0,0.12250196]
[1625468298255,1.03098121,34270.0,34269.0,0.47515088]
[1625468298353,1.03098121,34270.0,34269.0,0.59315088]
[1625468298453,1.03098121,34270.0,34269.0,0.59765292]
[1625468298554,0.008,34271.0,34269.0,0.59765292]
[1625468298956,0.008,34271.0,34270.0,0.00450209]
[1625468299055,0.008,34271.0,34270.0,3.67955758]
[1625468300258,0.24857544,34271.0,34270.0,3.67955758]
[1625468301159,0.24857544,34271.0,34270.0,2.30201263]
[1625468301259,0.24857544,34271.0,34270.0,2.29601263]
[1625468301559,0.24857544,34271.0,34270.0,2.23851054]
[1625468301660,0.24857544,34271.0,34270.0,2.29751054]
[1625468301859,0.24857544,34271.0,34270.0,2.23851054]
[1625468302060,1.27710462,34271.0,34270.0,2.23851054]
[1625468302260,1.51768006,34271.0,34270.0,2.23851054]
[1625468302459,2.71733477,34271.0,34270.0,1.03315871]
[1625468303367,2.71733477,34271.0,34268.0,1.20563334]
[1625468303368,4.08810764,34271.0,34268.0,1.03342495]
[1625468303462,4.37582764,34271.0,34268.0,1.03342495]
[1625468303713,2.22731841,34269.0,34267.0,1.03343946]
[1625468303968,2.22731841,34269.0,34268.0,0.00449768]
[1625468304168,1.37061795,34270.0,34268.0,0.00449768]
[1625468304371,1.37661795,34270.0,34268.0,0.00449768]
[1625468304569,2.22838203,34269.0,34268.0,1.03826468]
[1625468305470,3.5992574,34269.0,34268.0,0.00449768]
[1625468306273,2.22838203,34269.0,34268.0,1.03826045]
[1625468307824,2.22838203,34269.0,34268.0,2.24480368]
[1625468308078,2.22838203,34269.0,34268.0,2.240306]
[1625468308374,2.22838203,34269.0,34268.0,2.24480353]
[1625468311434,2.22838203,34269.0,34268.0,2.47149353]
[1625468312131,2.22838203,34269.0,34268.0,6.90909353]
[1625468312231,1.0284972,34269.0,34268.0,6.90909353]
[1625468312431,1.0284972,34269.0,34268.0,7.14966897]
[1625468312931,1.0284972,34269.0,34268.0,7.20866897]
[1625468313283,1.2680404,34271.0,34268.0,8.58763872]
[1625468313683,1.2680404,34271.0,34269.0,0.00449699]
[1625468313784,1.2680404,34271.0,34270.0,3.61967977]
[1625468313987,1.2680404,34271.0,34270.0,3.67867977]
[1625468314186,0.24057544,34271.0,34270.0,3.67867977]
[1625468314285,0.24057544,34271.0,34270.0,3.68317669]
[1625468314434,0.24057544,34271.0,34270.0,3.92375213]
[1625468314684,1.26804354,34271.0,34270.0,3.92375213]
[1625468315139,0.24057544,34271.0,34270.0,3.92375213]
[1625468317592,1.27006075,34271.0,34270.0,3.92375213]
[1625468319245,0.24057544,34271.0,34270.0,3.92375213]
[1625468319343,0.24057544,34271.0,34270.0,0.30407236]
[1625468319843,1.26983505,34271.0,34270.0,3.92316952]
[1625468320094,1.26983505,34271.0,34270.0,3.86416952]
[1625468320545,0.24057544,34271.0,34270.0,0.24507236]
[1625468321096,0.24057544,34271.0,34270.0,5.43427236]
[1625468321899,0.24057544,34271.0,34270.0,9.05324082]
[1625468321998,0.24057544,34271.0,34270.0,9.34765082]
[1625468324660,0.24057544,34271.0,34270.0,4.15845082]
[1625468324758,0.24057544,34271.0,34270.0,3.86404082]
[1625468324860,1.26962896,34271.0,34270.0,3.86404082]
[1625468334326,1.26962896,34271.0,34270.0,3.92304082]
[1625468334476,1.02905352,34271.0,34270.0,4.22552082]
[1625468334626,1.02905352,34271.0,34270.0,4.46609626]
[1625468334726,1.02852354,34273.0,34270.0,6.01852034]
[1625468334827,1.02852354,34273.0,34270.0,6.07752034]
[1625468335076,1.19991556,34275.0,34270.0,6.07752034]
[1625468335077,1.02880875,34274.0,34272.0,3.62226726]
[1625468335177,1.02880875,34274.0,34272.0,5.23366751]
[1625468335278,1.02880875,34274.0,34272.0,5.29266751]
[1625468335479,1.02880875,34274.0,34273.0,0.00447961]
[1625468335577,1.02880875,34274.0,34273.0,0.12247961]
[1625468335778,1.02895582,34275.0,34273.0,3.74469396]
[1625468335878,1.02895582,34275.0,34273.0,3.75501324]
[1625468336077,1.02895582,34275.0,34273.0,3.74469396]
[1625468336228,1.02895582,34275.0,34274.0,0.00447907]
[1625468336328,2.1868483,34276.0,34274.0,5.29397773]
[1625468336329,0.9866,34276.0,34274.0,5.29397773]
[1625468336630,0.006,34277.0,34274.0,5.29397773]
[1625468336729,0.006,34277.0,34276.0,0.48115088]
[1625468336829,0.006,34277.0,34276.0,0.54015088]
[1625468336930,0.006,34277.0,34276.0,0.59915088]
[1625468337029,0.006,34277.0,34276.0,0.60363209]
[1625468337279,0.006,34277.0,34276.0,5.77503865]
[1625468338230,0.006,34277.0,34276.0,4.22361668]
[1625468347306,1.02916158,34280.0,34276.0,4.22361668]
[1625468347606,1.02916158,34280.0,34277.0,0.00448064]
[1625468347708,1.02916158,34280.0,34278.0,3.7459]
[1625468347807,1.02994067,34281.0,34279.0,2.23793342]
[1625468347905,1.02994067,34281.0,34279.0,2.35593342]
[1625468348056,1.02994067,34281.0,34280.0,2.23797689]
[1625468348156,1.02994067,34281.0,34280.0,2.36045745]
[1625468348811,0.24057544,34282.0,34280.0,3.73759807]
[1625468349260,0.24057544,34282.0,34281.0,3.85889856]
[1625468349360,0.24057544,34282.0,34281.0,3.97689856]
[1625468352915,0.24057544,34282.0,34281.0,2.60019652]
[1625468354017,0.24057544,34282.0,34281.0,1.39558223]
[1625468354618,0.24057544,34282.0,34281.0,1.70926223]
[1625468355021,1.26989763,34282.0,34281.0,1.70926223]
[1625468355470,0.24057544,34282.0,34281.0,1.70926223]
[1625468355875,0.24057544,34282.0,34281.0,2.91339669]
[1625468357680,0.9266141,34282.0,34281.0,3.60151546]
[1625468358183,0.24057544,34282.0,34281.0,3.60151546]
[1625468358281,0.57998544,34282.0,34281.0,3.60151546]
[1625468358485,0.57998544,34282.0,34281.0,3.28783546]
[1625468358584,1.26580137,34282.0,34281.0,2.024701]
[1625468359133,5.80770137,34282.0,34281.0,2.024701]
[1625468359437,6.04827681,34282.0,34281.0,1.78412556]
[1625468359536,6.04827681,34282.0,34281.0,0.14949803]
[1625468359537,8.27313184,34282.0,34281.0,0.14949803]
[1625468360037,9.64191774,34282.0,34281.0,0.14949803]
[1625468360336,5.10001774,34282.0,34281.0,0.14949803]
[1625468360439,5.10001774,34282.0,34281.0,0.06348026]
[1625468361139,5.10001774,34282.0,34281.0,0.14950503]
[1625468364350,5.10001774,34282.0,34281.0,0.14502477]
[1625468364650,5.10001774,34282.0,34281.0,0.14950969]
[1625468366053,5.10001774,34282.0,34281.0,0.09050969]
[1625468366806,5.10001774,34282.0,34281.0,0.00448492]
[1625468367260,5.10001774,34282.0,34280.0,0.00448555]
[1625468367410,5.10001774,34282.0,34280.0,0.06348555]
[1625468367712,5.10001774,34282.0,34280.0,0.75211602]
[1625468367810,5.10001774,34282.0,34281.0,0.00448558]
[1625468367911,5.10001774,34282.0,34281.0,0.06348558]
[1625468369418,3.73123184,34282.0,34281.0,0.75214434]
[1625468369566,3.73123184,34282.0,34281.0,0.81114434]
[1625468371220,3.73123184,34282.0,34281.0,1.84437231]
[1625468371974,3.39182184,34282.0,34281.0,2.15590231]
[1625468372523,1.16696681,34282.0,34281.0,8.41816318]
[1625468372823,2.19401623,34282.0,34281.0,7.04042405]
[1625468373072,2.19401623,34282.0,34281.0,3.36142405]
[1625468373574,2.19401623,34282.0,34281.0,3.60199949]
[1625468373674,2.19401623,34282.0,34281.0,8.04759949]
[1625468373777,1.16696681,34282.0,34281.0,8.04759949]
[1625468374230,0.48115088,34282.0,34281.0,9.42532971]
[1625468375783,0.56667102,34282.0,34281.0,9.42532971]
[1625468376031,0.56667102,34282.0,34281.0,4.97972971]
[1625468376281,0.48115088,34282.0,34281.0,4.97972971]
[1625468382294,0.56660483,34282.0,34281.0,4.97972971]
[1625468382395,0.56660483,34282.0,34281.0,10.06692971]
[1625468382743,0.56660483,34282.0,34281.0,4.97972971]
[1625468386251,0.48115088,34282.0,34281.0,4.97972971]
[1625468388355,0.99411397,34282.0,34281.0,5.49645103]
[1625468392166,1.67842235,34282.0,34281.0,5.49645103]
[1625468394216,1.67842235,34282.0,34281.0,7.04848965]
[1625468394869,1.67842235,34282.0,34281.0,10.82718965]
[1625468395469,1.67842235,34282.0,34281.0,7.04848965]
[1625468396020,1.67842235,34282.0,34281.0,11.19568965]
[1625468397473,1.19727147,34282.0,34281.0,11.19568965]
[1625468397573,1.19727147,34282.0,34281.0,10.95511421]
[1625468398126,1.19727147,34282.0,34281.0,11.43626509]
[1625468399380,0.24057544,34283.0,34281.0,6.61440508]
[1625468399681,0.24057544,34283.0,34282.0,0.00448464]
[1625468399783,0.24057544,34283.0,34282.0,0.06348464]
[1625468399883,1.26683401,34283.0,34282.0,4.95058321]
[1625468400684,2.46424356,34283.0,34282.0,4.95058321]
[1625468401696,2.46424356,34283.0,34282.0,4.89158321]
[1625468401785,2.46424356,34283.0,34282.0,4.83258321]
[1625468401935,2.46424356,34283.0,34282.0,4.89158321]
[1625468402035,2.46424356,34283.0,34282.0,4.83258321]
[1625468402137,7.53330997,34283.0,34282.0,4.83258321]
[1625468402236,7.77388541,34283.0,34282.0,4.83258321]
[1625468402437,7.78800669,34283.0,34282.0,4.83258321]
[1625468402538,7.84700669,34283.0,34282.0,2.93458321]
[1625468402639,9.27357364,34283.0,34282.0,2.93458321]
[1625468402990,9.27357364,34283.0,34282.0,2.43448321]
[1625468403089,9.77357364,34283.0,34282.0,0.93418321]
[1625468403192,9.86027364,34283.0,34280.0,1.37957251]
[1625468403296,10.07747364,34283.0,34280.0,0.87957251]
[1625468403498,0.04871665,34282.0,34281.0,0.08623494]
[1625468403589,0.10771665,34282.0,34281.0,0.08623494]
[1625468403693,0.60771665,34282.0,34281.0,0.02723494]
[1625468404142,0.84829209,34282.0,34281.0,0.02723494]
[1625468404241,0.84829209,34282.0,34277.0,0.002]
[1625468404242,4.08272768,34282.0,34277.0,0.002]
[1625468404442,4.14172768,34282.0,34277.0,0.002]
[1625468404593,0.04872067,34281.0,34278.0,0.00448238]
[1625468404695,0.10772067,34281.0,34278.0,0.00448238]
[1625468404794,0.5,34280.0,34278.0,0.00448238]
[1625468404894,0.559,34280.0,34278.0,0.00448238]
[1625468404995,0.118,34280.0,34278.0,0.00448238]
[1625468405194,0.01413839,34279.0,34278.0,0.00448238]
[1625468405299,0.13213839,34279.0,34278.0,0.00448238]
[1625468405495,3.36537041,34279.0,34277.0,0.002]
[1625468405994,0.0141508,34278.0,34277.0,0.002]
[1625468406195,3.84737765,34278.0,34277.0,0.002]
[1625468406294,3.84737765,34278.0,34277.0,0.00647689]
[1625468406495,3.84737765,34278.0,34277.0,0.002]
[1625468406595,2.14524136,34278.0,34277.0,0.002]
[1625468406795,2.14524136,34278.0,34277.0,0.00647682]
[1625468407296,2.14524136,34278.0,34276.0,0.004]
[1625468407297,2.13109056,34278.0,34276.0,0.004]
[1625468407897,1.52956143,34277.0,34276.0,0.004]
[1625468407999,1.58856143,34277.0,34276.0,0.004]
[1625468408100,1.64756143,34277.0,34276.0,0.004]
[1625468410306,1.64556143,34277.0,34276.0,0.004]
[1625468413313,1.64356143,34277.0,34276.0,0.004]
[1625468414113,1.73206143,34277.0,34276.0,0.004]
[1625468416316,1.73206143,34277.0,34271.0,0.002]
[1625468416566,0.2065,34277.0,34271.0,0.002]
[1625468416969,5.2017,34273.0,34271.0,0.002]
[1625468417068,5.2607,34273.0,34271.0,0.002]
[1625468418372,0.48115088,34272.0,34271.0,0.002]
[1625468418573,0.54015088,34272.0,34271.0,0.002]
[1625468423635,1.7271378,34272.0,34271.0,0.002]
[1625468424285,0.79213088,34272.0,34271.0,0.002]
[1625468425085,1.97862874,34272.0,34271.0,0.002]
[1625468425285,1.97862874,34272.0,34268.0,0.9562]
[1625468425386,1.97862874,34272.0,34268.0,1.0152]
[1625468425742,1.97862874,34272.0,34268.0,0.9562]
[1625468425840,2.03762874,34272.0,34268.0,0.9562]
[1625468426391,0.48115088,34269.0,34268.0,0.9562]
[1625468426492,3.13521927,34269.0,34268.0,0.9562]
[1625468428945,3.13521927,34269.0,34266.0,0.002]
[1625468429061,0.5,34268.0,34262.0,0.006]
[1625468429170,0.559,34268.0,34260.0,0.15347857]
[1625468429251,1.18269549,34263.0,34256.0,1.43171188]
[1625468429348,0.5,34262.0,34256.0,0.09863688]
[1625468429449,0.5,34262.0,34252.0,1.20167909]
[1625468429564,0.559,34262.0,34252.0,1.20167909]
[1625468429647,0.559,34262.0,34252.0,1.05177909]
[1625468429748,0.059,34256.0,34252.0,0.35307909]
[1625468429848,0.32874,34256.0,34250.0,1.30134754]
[1625468429949,0.5,34255.0,34250.0,1.25674754]
[1625468430049,0.618,34255.0,34250.0,1.25674754]
[1625468430151,0.618,34255.0,34250.0,1.23954754]
[1625468430250,0.01415012,34254.0,34251.0,0.0044845]
[1625468430350,0.07315012,34254.0,34251.0,0.0044845]
[1625468430452,0.96230176,34252.0,34251.0,0.0044845]
[1625468430549,1.58030176,34252.0,34250.0,1.23954754]
[1625468430649,6.72370176,34252.0,34250.0,1.23954754]
[1625468431151,6.72370176,34252.0,34246.0,0.94]
[1625468431754,6.72370176,34252.0,34237.0,0.977]
[1625468431853,6.72370176,34252.0,34232.0,0.29757544]
[1625468432054,6.72370176,34252.0,34232.0,0.24057544]
[1625468432153,6.72370176,34252.0,34233.0,0.00448549]
[1625468432354,8.23100737,34252.0,34233.0,0.00448549]
[1625468432454,4.33142632,34234.0,34233.0,0.00448549]
[1625468432553,4.68796632,34234.0,34233.0,0.00448549]
[1625468432653,4.68796632,34234.0,34225.0,0.24057544]
[1625468433705,4.62896632,34234.0,34225.0,1.26758498]
[1625468433808,4.68796632,34234.0,34225.0,1.26758498]
[1625468434458,4.68796632,34234.0,34222.0,0.9586]
[1625468434459,0.24057544,34229.0,34223.0,1.02533009]
[1625468434558,0.29957544,34229.0,34223.0,1.02533009]
[1625468435207,0.24057544,34229.0,34223.0,1.02533009]
[1625468436262,0.24057544,34229.0,34222.0,1.98262816]
[1625468436460,0.29957544,34229.0,34222.0,1.98262816]
[1625468436661,0.24057544,34229.0,34228.0,0.29957544]
[1625468441527,0.24057544,34229.0,34228.0,0.50565544]
[1625468446550,0.24057544,34229.0,34228.0,0.74623088]
[1625468447201,0.06674194,42977.0,34228.0,0.80323088]
[1625468447302,6.20197807,34252.0,34228.0,0.80323088]
[1625468447402,0.99961213,34251.0,34228.0,0.80323088]
[1625468447503,1.11761213,34251.0,34228.0,0.80323088]
[1625468447954,0.16674381,34249.0,34228.0,0.80323088]
[1625468448053,0.28474381,34249.0,34228.0,0.80323088]
[1625468448554,0.24057544,34246.0,34245.0,0.24057544]
[1625468448655,0.35857544,34246.0,34245.0,0.24057544]
[1625468453266,0.44547544,34246.0,34245.0,0.24057544]
[1625468455522,0.44547544,34246.0,34242.0,0.24057544]
[1625468456624,0.61365727,34246.0,34242.0,0.24057544]
[1625468457073,0.24057544,34243.0,34242.0,0.24057544]
[1625468457177,0.29957544,34243.0,34242.0,0.24057544]
[1625468458477,0.31374823,34243.0,34242.0,0.24505282]
[1625468459278,0.31374823,34243.0,34242.0,0.24705282]
[1625468460885,0.48239246,34243.0,34242.0,0.24705282]
[1625468461387,0.31374823,34243.0,34242.0,0.24705282]
[1625468461986,0.81374823,34243.0,34242.0,0.24705282]
[1625468462086,1.2931287,34243.0,34242.0,0.24705282]
[1625468462190,1.2931287,34243.0,34242.0,0.00647738]
[1625468462437,0.7931287,34243.0,34242.0,0.00647738]
[1625468462739,1.63477566,34243.0,34242.0,0.00647738]
[1625468463038,1.63477566,34243.0,34234.0,0.13205282]
[1625468463138,0.116,34242.0,34224.0,0.1707823]
[1625468463238,0.48115088,34235.0,34229.0,1.16787544]
[1625468463339,0.057,34234.0,34229.0,1.16787544]
[1625468463439,5.1919,34230.0,34229.0,1.16787544]
[1625468463638,5.2509,34230.0,34229.0,1.16787544]
[1625468463839,5.3079,34230.0,34229.0,1.17234881]
[1625468464342,5.381089,34230.0,34229.0,1.17234881]
[1625468464444,5.322089,34230.0,34229.0,1.11334881]
[1625468465244,5.56266444,34230.0,34229.0,1.11334881]
[1625468465342,5.62166444,34230.0,34229.0,1.11334881]
[1625468465444,5.12166444,34230.0,34229.0,1.11334881]
[1625468465693,5.10747544,34230.0,34229.0,1.11334881]
[1625468465996,4.60747544,34230.0,34229.0,1.11334881]
[1625468466200,5.10747544,34230.0,34229.0,1.10887544]
[1625468467453,5.2757849,34230.0,34229.0,0.8683]
[1625468467552,5.28997499,34230.0,34229.0,0.3683]
[1625468467653,5.28997499,34230.0,34226.0,0.24057544]
[1625468467854,5.2757849,34230.0,34226.0,0.24057544]
[1625468467955,5.10747544,34230.0,34226.0,0.24057544]
[1625468468356,0.16795685,34229.0,34226.0,0.24057544]
[1625468468456,0.557,34228.0,34226.0,0.24057544]
[1625468468557,0.616,34228.0,34226.0,0.24057544]
[1625468468656,0.675,34228.0,34226.0,0.24057544]
[1625468469055,0.675,34228.0,34222.0,0.24057544]
[1625468469256,0.48115088,34223.0,34222.0,0.24057544]
[1625468469357,1.09715088,34223.0,34222.0,0.24457544]
[1625468469659,1.09715088,34223.0,34222.0,0.004]
[1625468469761,1.15615088,34223.0,34222.0,0.004]
[1625468472315,1.15415088,34223.0,34222.0,0.004]
[1625468472766,0.65415088,34223.0,34222.0,0.004]
[1625468473167,1.15415088,34223.0,34222.0,0.004]
[1625468473570,0.65415088,34223.0,34222.0,0.004]
[1625468475225,0.65415088,34223.0,34216.0,0.002]
[1625468475676,0.74155088,34223.0,34216.0,0.002]
[1625468475878,0.65415088,34223.0,34216.0,0.002]
[1625468476377,0.59515088,34223.0,34216.0,0.002]
[1625468476480,0.53615088,34223.0,34216.0,0.002]
[1625468476841,0.47915088,34223.0,34216.0,0.061]
[1625468476957,0.47915088,34223.0,34216.0,0.12]
[1625468477042,0.47915088,34223.0,34217.0,0.00448342]
[1625468477152,0.47915088,34223.0,34217.0,0.38503342]
[1625468477228,0.47915088,34223.0,34217.0,0.44403342]
[1625468477334,0.23857544,34223.0,34222.0,0.48115088]
[1625468477429,0.23857544,34223.0,34222.0,0.54015088]
[1625468477780,0.23857544,34223.0,34222.0,0.54463109]
[1625468478030,0.23857544,34223.0,34222.0,0.60363109]
[1625468478682,3.8802,34224.0,34222.0,0.60363109]
[1625468479135,3.8802,34224.0,34223.0,0.00448007]
[1625468479234,3.8802,34224.0,34223.0,0.06348007]
[1625468479336,3.8802,34224.0,34223.0,0.12248007]
[1625468481391,3.8802,34224.0,34223.0,0.118]
[1625468481642,3.8802,34224.0,34223.0,0.12248029]
[1625468481747,3.8802,34224.0,34223.0,0.06348029]
[1625468481854,3.9392,34224.0,34223.0,0.00448029]
[1625468481943,3.9392,34224.0,34222.0,0.48115088]
[1625468482046,4.22297,34224.0,34222.0,0.48115088]
[1625468483448,0.34277,34224.0,34222.0,0.48115088]
[1625468483597,0.28377,34224.0,34222.0,0.48115088]
[1625468484551,4.29737,34224.0,34222.0,0.48115088]
[1625468484953,0.28377,34224.0,34222.0,0.48115088]
[1625468485605,0.24057544,34225.0,34222.0,0.48115088]
[1625468486008,0.16980712,34224.0,34222.0,0.48115088]
[1625468486458,0.41038452,34225.0,34222.0,0.48115088]
[1625468486759,0.41038452,34225.0,34222.0,0.79889088]
[1625468486858,0.41038452,34225.0,34222.0,0.85789088]
[1625468486959,0.41038452,34225.0,34223.0,0.00448111]
[1625468487061,0.41038452,34225.0,34223.0,0.12248111]
[1625468487260,0.41038452,34225.0,34223.0,0.06348111]
[1625468487510,0.41038452,34225.0,34224.0,0.00448105]
[1625468487612,0.41038452,34225.0,34224.0,0.06348105]
[1625468487711,0.24057544,34225.0,34224.0,0.06348105]
[1625468487810,0.29957544,34225.0,34224.0,0.00448105]
[1625468487911,0.24057544,34225.0,34224.0,0.00448105]
[1625468488012,0.24057544,34225.0,34224.0,0.06348105]
[1625468488113,0.91917519,34225.0,34224.0,0.059]
[1625468488512,1.93870087,34225.0,34224.0,0.059]
[1625468488613,1.93870087,34225.0,34224.0,0.06348142]
[1625468488913,1.93870087,34225.0,34224.0,0.00448142]
[1625468489315,1.99770087,34225.0,34224.0,0.00448142]
[1625468489415,2.11370087,34225.0,34222.0,0.48115088]
[1625468489517,3.544342,34225.0,34222.0,0.48115088]
[1625468489616,4.2316,34223.0,34222.0,0.48115088]
[1625468489717,4.2886,34223.0,34222.0,0.48115088]
[1625468489817,6.04550523,34223.0,34222.0,0.48115088]
[1625468490015,5.98650523,34223.0,34222.0,0.48115088]
[1625468490416,5.98650523,34223.0,34222.0,0.48563268]
[1625468491876,5.98650523,34223.0,34222.0,0.24505724]
[1625468491972,6.04550523,34223.0,34222.0,0.24505724]
[1625468492324,6.04550523,34223.0,34222.0,0.24057544]
[1625468492525,8.59168281,34223.0,34222.0,0.24057544]
[1625468493375,9.10079634,34223.0,34222.0,0.24057544]
[1625468493574,9.34137178,34223.0,34222.0,0.24057544]
[1625468493926,9.34137178,34223.0,34222.0,0.24505717]
[1625468494627,5.10977178,34223.0,34222.0,0.24505717]
[1625468494827,0.35657544,34223.0,34222.0,0.24505717]
[1625468495377,5.10628494,34223.0,34222.0,0.24505717]
[1625468496380,3.74929777,34223.0,34222.0,0.24505717]
[1625468501093,3.69029777,34223.0,34222.0,0.24505717]
[1625468501193,3.74929777,34223.0,34222.0,0.24505717]
[1625468501945,3.69029777,34223.0,34222.0,0.24505717]
[1625468502146,3.74929777,34223.0,34222.0,0.24505717]
[1625468502901,0.35657544,34223.0,34222.0,0.24505717]
[1625468503104,0.29757544,34223.0,34222.0,0.24505717]
[1625468503300,0.35657544,34223.0,34222.0,0.24505717]
[1625468503403,3.75054748,34223.0,34222.0,0.24505717]
[1625468503853,5.1076282,34223.0,34222.0,0.24505717]
[1625468508963,5.6076282,34223.0,34222.0,0.24505717]
[1625468509062,5.6666282,34223.0,34222.0,0.24505717]
[1625468509163,7.19746693,34223.0,34222.0,0.24505717]
[1625468510115,7.21163126,34223.0,34222.0,0.24505717]
[1625468513929,7.21163126,34223.0,34222.0,0.24057544]
[1625468514029,6.71163126,34223.0,34222.0,0.24057544]
[1625468514428,7.21163126,34223.0,34222.0,0.24057544]
[1625468514729,8.91334904,34223.0,34222.0,0.24057544]
[1625468514829,8.91334904,34223.0,34216.0,0.002]
[1625468515129,6.29864491,34217.0,34216.0,0.002]
[1625468515235,6.65975491,34217.0,34216.0,0.002]
[1625468515328,6.71875491,34217.0,34216.0,0.002]
[1625468515581,5.1867303,34217.0,34216.0,0.0064843]
[1625468515779,5.42730574,34217.0,34216.0,0.0064843]
[1625468516331,5.51430574,34217.0,34216.0,0.0064843]
[1625468516733,7.04658531,34217.0,34216.0,0.0064843]
[1625468517233,5.51430574,34217.0,34216.0,0.0064843]
[1625468517831,5.42730574,34217.0,34216.0,0.0064843]
[1625468519434,5.18219574,34217.0,34216.0,0.0064843]
[1625468520786,3.18079574,34217.0,34216.0,0.0064843]
[1625468520887,2.44239525,34217.0,34216.0,0.25397]
[1625468521026,1.53427934,34217.0,34216.0,0.25397]
[1625468521095,1.53427934,34217.0,34216.0,0.31297]
[1625468521489,1.53427934,34217.0,34216.0,0.31745132]
[1625468521593,1.47527934,34217.0,34216.0,0.25845132]
[1625468521688,1.47527934,34217.0,34216.0,0.48981535]
[1625468521791,1.53536639,34221.0,34216.0,0.73039079]
[1625468521994,1.53536639,34221.0,34216.0,0.78939079]
[1625468522339,1.53536639,34221.0,34217.0,0.00448085]
[1625468522440,0.006,34227.0,34217.0,0.06348085]
[1625468522641,0.006,34227.0,34217.0,0.12248085]
[1625468522742,0.17118312,34220.0,34217.0,0.12248085]
[1625468522841,0.17118312,34220.0,34218.0,0.00448066]
[1625468522942,0.17118312,34220.0,34218.0,0.06348066]
[1625468523092,0.1712572,34222.0,34218.0,0.12248066]
[1625468523392,0.1712572,34222.0,34219.0,0.00448052]
[1625468523492,0.1712572,34222.0,34219.0,0.12248052]
[1625468523794,0.17128464,34223.0,34221.0,0.48115088]
[1625468523892,0.17128464,34223.0,34221.0,0.59915088]
[1625468524145,0.17128464,34223.0,34222.0,0.00448055]
[1625468524243,0.17128464,34223.0,34222.0,0.12248055]
[1625468524895,0.006,34227.0,34222.0,0.12248055]
[1625468525244,0.006,34227.0,34223.0,0.00448019]
[1625468525343,0.006,34227.0,34223.0,0.33309019]
[1625468525746,0.006,34227.0,34224.0,0.00448019]
[1625468525844,0.006,34227.0,34226.0,0.24057544]
[1625468525945,0.006,34227.0,34226.0,0.29957544]
[1625468526348,0.006,34227.0,34226.0,0.30405534]
[1625468527399,0.006,34227.0,34226.0,0.47638153]
[1625468530255,0.006,34227.0,34226.0,0.47190163]
[1625468534521,0.006,34227.0,34226.0,0.41290163]
[1625468534624,0.22183,34227.0,34226.0,0.41290163]
[1625468534721,0.27883,34227.0,34226.0,0.41290163]
[1625468535020,0.27883,34227.0,34226.0,0.24057544]
[1625468535322,1.87443575,34227.0,34226.0,0.24057544]
[1625468535419,1.81543575,34227.0,34226.0,0.24057544]
[1625468535519,1.87443575,34227.0,34226.0,0.24057544]
[1625468535719,1.81543575,34227.0,34226.0,0.24057544]
[1625468535919,2.05601119,34227.0,34226.0,0.24057544]
[1625468536022,3.48111852,34227.0,34226.0,0.24057544]
[1625468537023,3.49527614,34227.0,34226.0,0.24057544]
[1625468537221,3.48111852,34227.0,34226.0,0.24057544]
[1625468537522,3.42411852,34227.0,34226.0,0.24057544]
[1625468538274,3.41811852,34227.0,34226.0,0.24057544]
[1625468538674,1.88151277,34227.0,34226.0,0.24057544]
[1625468539475,1.93851277,34227.0,34226.0,0.24057544]
[1625468539927,3.47617158,34227.0,34226.0,0.24057544]
[1625468541480,4.67242852,34227.0,34226.0,0.24057544]
[1625468545589,4.68658282,34227.0,34226.0,0.24057544]
[1625468550998,5.7112844,34227.0,34226.0,0.24057544]
[1625468553453,5.6522844,34227.0,34226.0,0.24057544]
[1625468553551,5.7112844,34227.0,34226.0,0.24057544]
[1625468558610,7.41718003,34227.0,34226.0,0.24057544]
[1625468564672,7.47618003,34227.0,34226.0,0.24057544]
[1625468568727,3.88911418,34227.0,34226.0,0.24057544]
[1625468569379,7.47947427,34227.0,34226.0,0.24057544]
[1625468570683,8.06757427,34227.0,34220.0,0.002]
[1625468570988,0.04881071,34226.0,34218.0,0.17247987]
[1625468571090,0.0882,34225.0,34218.0,0.17247987]
[1625468571187,0.2062,34225.0,34218.0,0.17247987]
[1625468571283,0.557,34224.0,34218.0,0.17247987]
[1625468571384,0.675,34224.0,34218.0,0.17247987]
[1625468571496,0.675,34224.0,34213.0,0.51750757]
[1625468571497,5.12389456,34221.0,34213.0,0.51750757]
[1625468571584,0.1433,34220.0,34213.0,0.51750757]
[1625468571690,4.5293,34214.0,34213.0,0.51750757]
[1625468571783,4.5883,34214.0,34213.0,0.51750757]
[1625468571885,8.17445071,34214.0,34212.0,0.1725166]
[1625468572084,8.18862886,34214.0,34213.0,0.00448015]
[1625468572283,8.18862886,34214.0,34213.0,0.10448015]
[1625468572384,8.91035518,34214.0,34213.0,0.10448015]
[1625468572734,8.96735518,34214.0,34213.0,0.10448015]
[1625468573437,10.50315911,34214.0,34213.0,0.10448015]
[1625468574789,10.50315911,34214.0,34213.0,0.1]
[1625468575241,10.50315911,34214.0,34209.0,0.4376298]
[1625468575354,10.50315911,34214.0,34206.0,1.03471062]
[1625468575355,11.06215911,34214.0,34206.0,1.03471062]